Cogmind - Beta 12 *** ADVENTURER MODE // 2023.04.15 @ 21:09:25 Player: Moridin Result: Destroyed by G-50 Soldier with Heavy Laser Performance ------------- Evolutions (5) 2500 Regions Visited (13) 2600 Robots Destroyed (138) 690 Value Destroyed (5450) 5450 Prototype IDs (15) 300 Alien Tech Used (0) 0 Bonus (1816) 1816 TOTAL SCORE: 13356 Bonus ------- High Alert Combat Kills 496 Follower Combat Kills 120 Entered Garrisons 200 Used RIF Installer 1000 Cogmind --------- Core Integrity 0/1000 Matter 300/300 Energy 100/100 System Corruption 6% Temperature Cool (9) Movement Core (700) Ox13 Location -5/Factory Parts ------- > --- POWER (2) -------- (None) > --- PROPULSION (5) --- (None) > --- UTILITY (7) ------ High-capacity Storage Unit Advanced Targeting Computer > --- WEAPON (3) ------- (None) > --- INVENTORY (20) --- Light Ion Engine Improved Sensor Array Particle Charger Launcher Loader Phase Shifter Improved Light Armor Plating Thermal Shield Relay Coupler [Grunt] (28) Relay Coupler [Behemoth] (13) Peak State ------------ > --- POWER ------------ Fission-Ion Core > --- PROPULSION ------- Flying NPA-FPA Exoskeleton > --- UTILITY ---------- Scrap Engine High-capacity Storage Unit Matter Compressor Advanced Signal Interpreter Advanced Targeting Computer Improved Medium Armor Plating > --- WEAPON ----------- Energy Wave Construct/G Thermal Construct/G Directed Plasma Construct/G > --- INVENTORY -------- Light Ion Engine Improved Sensor Array Particle Charger Launcher Loader Phase Shifter Improved Light Armor Plating Thermal Shield Relay Coupler [Grunt] Relay Coupler [Behemoth] [Rating: 75] Favorites ----------- Power Enhanced Nuclear Core Engine Improved Ion Engine Power Core Enhanced Nuclear Core Propulsion Improved Aluminum Leg Treads Light Treads Leg Improved Aluminum Leg Wheel Compact Wheel Flight Unit Constructs Utility Large Storage Unit Device Scrap Engine Storage Large Storage Unit Processor Advanced Signal Interpreter Hackware Relay Coupler [Sentry] Protection Medium Armor Plating Weapon Advanced Beam Cannon Energy Gun Precision Shock Rifle Energy Cannon Advanced Beam Cannon Ballistic Gun Assault Rifle Ballistic Cannon Advanced Assault Cannon Launcher Rocket Launcher Special Melee Weapon Datajack Build | -11 -10 -10 -9 -9 -9 -9 -7 -6 -6 -6 -6 -6 -5 ------- Run | Jun Mat Min Mat Sto Gar Rec Fac Fac Was Fac Low Low Fac Slots Evolved 10 | . . . 2 . . . 4 2 . . . . 2 Power 1 | . . . . . . . 1 . . . . . . Propulsion 3 | . . . 1 . . . 1 . . . . . 1 Utility 5 | . . . 1 . . . 2 1 . . . . 1 Weapon 1 | . . . . . . . . 1 . . . . . Parts Attached 86 | 6 5 2 10 9 4 6 19 1 2 6 5 . 11 Power 16 | 1 1 . 1 2 . 1 4 1 . 1 . . 4 Engine 10 | 1 1 . 1 2 . 1 2 1 . . . . 1 Core 6 | . . . . . . . 2 . . 1 . . 3 Reactor . | . . . . . . . . . . . . . . Propulsion 20 | 2 1 . 6 2 . 1 8 . . . . . . Treads 1 | 1 . . . . . . . . . . . . . Leg 15 | . . . 4 2 . 1 8 . . . . . . Wheel 3 | 1 1 . 1 . . . . . . . . . . Hover . | . . . . . . . . . . . . . . Flight 1 | . . . 1 . . . . . . . . . . Utility 24 | 1 3 . 2 2 3 1 1 . 1 5 2 . 3 Device 9 | . 1 . 2 1 1 . 1 . 1 2 . . . Storage 4 | 1 1 . . . . . . . . 1 1 . . Processor 3 | . . . . . . . . . . 1 1 . 1 Hackware 1 | . . . . . . 1 . . . . . . . Protection 7 | . 1 . . 1 2 . . . . 1 . . 2 Artifact . | . . . . . . . . . . . . . . Weapon 26 | 2 . 2 1 3 1 3 6 . 1 . 3 . 4 Energy Gun 7 | 1 . . . . . . 3 . 1 . 2 . . Energy Cannon 3 | . . . . 1 . . . . . . . . 2 Ballistic Gun 10 | 1 . 1 1 2 . 2 1 . . . 1 . 1 Ballistic Cannon 2 | . . . . . . . 1 . . . . . 1 Launcher 3 | . . 1 . . 1 . 1 . . . . . . Special Weapon . | . . . . . . . . . . . . . . Impact Weapon . | . . . . . . . . . . . . . . Slashing Weapon . | . . . . . . . . . . . . . . Piercing Weapon . | . . . . . . . . . . . . . . Special Melee Weapon 1 | . . . . . . 1 . . . . . . . Unidentified Prototypes 7 | . . . 1 2 . . 2 1 . . . . 1 Corrupted Parts 3 | . 1 . . . . . 2 . . . . . . System Corruption 10 | . 1 . . . . . 9 . . . . . . Parts Lost 33 | . . . 1 . 1 1 4 . 3 . 3 . 20 Power 6 | . . . . . . . . . . . 1 . 5 Propulsion 8 | . . . . . . . 2 . 2 . . . 4 Utility 9 | . . . . . 1 1 . . 1 . 1 . 5 Weapon 10 | . . . 1 . . . 2 . . . 1 . 6 Highest Loss Streak 12 | . . . 1 . 1 1 2 . 2 . 2 . 12 To Critical Strikes . | . . . . . . . . . . . . . . Average Slot Usage (%) 82 | . 95 100 89 97 99 99 90 73 58 45 59 66 56 Engine 7 | . 14 14 11 10 11 11 3 7 10 6 4 . 1 Core 4 | . . . . . . . 10 4 . 6 7 13 4 Treads 1 | . . . . . . . . . . . 5 6 3 Leg 19 | . . . 31 31 33 33 29 20 16 2 . . . Wheel 2 | . 27 28 . . . . . . . . . . . Device 10 | . 1 14 22 13 6 11 15 13 12 15 9 6 4 Storage 9 | . 14 14 11 11 11 11 7 6 4 3 11 13 10 Processor 2 | . . . . . . . . . . 1 8 13 12 Hackware 2 | . . . . . . 4 7 6 4 . . . . Protection 4 | . 8 . . 7 15 5 . . . 3 . . 2 Energy Gun 3 | . 14 3 . . . . 8 . . . 4 6 . Energy Cannon 3 | . . . . 6 11 11 1 . . . . . . Ballistic Gun 6 | . 14 14 11 15 5 4 1 6 2 . 3 6 6 Launcher 1 | . . 10 . . 5 5 1 . . . . . . Naked Turns . | . . . . . . . . . . . . . . Heaviest Build 86 | 12 30 28 30 42 48 38 49 53 53 29 71 71 86 Greatest Support 68 | 20 32 32 45 39 45 45 59 59 68 45 68 68 68 Greatest Overweight (x) 2 | . 1 . 2 1 1 . 1 1 1 . 1 1 1 Average Overweight (x) . | . . . . . . . . . . . . 1 . Largest Inventory Capacity 20 | 8 15 15 15 15 15 15 15 15 15 5 20 20 20 Average Capacity 15 | 6 14 15 15 15 15 15 15 15 12 5 17 20 20 Most Carried 15 | 7 15 14 15 15 15 15 15 12 11 5 5 5 10 Average Carried 11 | 3 12 14 13 14 14 14 14 11 9 3 4 5 9 Final Capacity 20 | 8 15 15 15 15 15 15 15 15 5 5 20 20 20 Final Carried 15 | 7 14 14 15 15 15 15 11 11 5 5 5 5 10 Scrap Engine Consumption 49 | . . . . . . . . 7 4 2 7 1 28 Constructs Created 7 | . . . . . . . . . 2 . 1 . 4 Constructs Modified 8 | . . . . . . . . . 1 1 3 . 3 Class Distribution -------------------- 56% | Mutant 28% | Bothacker-Mutant 15% | Construct Dominant Class ---------------- Mutant | -10/Materials Mutant | -10/Mines Mutant | -9/Materials Mutant | -9/Storage Mutant | -9/Garrison Mutant | -9/Recycling Bothacker-Mutant | -7/Factory Bothacker-Mutant | -6/Factory Bothacker-Mutant | -6/Waste Mutant | -6/Factory Construct | -6/Lower Caves Construct | -6/Lower Caves Mutant | -5/Factory Resources | -11 -10 -10 -9 -9 -9 -9 -7 -6 -6 -6 -6 -6 -5 ----------- Run | Jun Mat Min Mat Sto Gar Rec Fac Fac Was Fac Low Low Fac Matter Collected 2363 | 233 117 9 222 283 199 82 239 231 . . 401 44 303 Remotely . | . . . . . . . . . . . . . . Salvage Created 5514 | 90 154 42 497 437 579 235 1419 261 . . 233 121 1446 Parts 282 | 10 15 3 24 25 44 11 62 5 . . 5 4 74 Haulers Intercepted 9 | . 1 . 3 4 . . 1 . . . . . . Recyclers Shooed 2 | . . . 1 . . . . . . . . . 1 Parts Field Recycled . | . . . . . . . . . . . . . . Retrieved Matter . | . . . . . . . . . . . . . . Parts Self-Destructed 12 | . . . . . . . . . . . 9 3 . Prevented 1 | . . . . . . . . . . . 1 . . Kills | -11 -10 -10 -9 -9 -9 -9 -7 -6 -6 -6 -6 -6 -5 ------- Run | Jun Mat Min Mat Sto Gar Rec Fac Fac Was Fac Low Low Fac Combat Hostiles Destroyed 97 | . 5 12 4 7 18 5 19 . . . 4 2 21 Melee 9 | . . . . . . . . . . . 3 . 6 Guns 38 | . 5 1 4 5 2 1 9 . . . 1 2 8 Cannons 22 | . . . . 2 11 2 4 . . . . . 3 AOE 21 | . . 11 . . 5 2 2 . . . . . 1 Classes Destroyed 15 | 2 3 1 2 2 . 3 1 . . . . . 1 Worker 11 | . 1 . 1 . . 1 1 1 . . . . 6 Builder 7 | . . . . 1 . 1 1 . . . . . 4 Tunneler 4 | 2 . . . . . . 1 . . . . . 1 Hauler 9 | . 1 . 3 4 . . 1 . . . . . . Recycler 9 | 1 . . 2 . . . 2 2 . . . . 2 Watcher 10 | . . . 1 . . . 6 . . . . . 3 Swarmer 24 | . 5 3 2 3 3 . . . . . . . 8 Grunt 37 | . . . . 3 9 1 12 . . . 3 2 7 Brawler 1 | . . . . . . . . . . . . . 1 Protector 1 | . . . . . . 1 . . . . . . . Sentry 14 | . . . 2 1 6 1 3 . . . . . 1 Demolisher 1 | . . . . . . 1 . . . . . . . Hunter 5 | . . . . . . . 2 . . . 1 . 2 Programmer 5 | . . . . . . 1 2 . . . . . 2 Assembled 9 | . . 9 . . . . . . . . . . . Best Kill Streak 10 | 3 3 9 6 3 6 6 4 1 . . 2 2 10 Combat Bots Only 9 | . 3 9 4 3 6 5 3 . . . 2 2 9 Max Kills in Single Turn 4 | 1 1 4 1 2 2 3 2 1 . . 1 1 2 Gunslinging . | . . . . . . . . . . . . . . Exploded 4 | . . 4 . . 2 2 1 . . . . . 1 Melee 1 | . . . . . . . . . . . 1 . 1 Uniques/NPCs Destroyed . | . . . . . . . . . . . . . . Combat | -11 -10 -10 -9 -9 -9 -9 -7 -6 -6 -6 -6 -6 -5 -------- Run | Jun Mat Min Mat Sto Gar Rec Fac Fac Was Fac Low Low Fac Damage Taken 6902 | . 168 201 114 149 609 197 1132 . 269 . 453 196 3414 Core 1509 | . 26 41 26 33 108 22 130 . . . 72 46 1005 Absorbed by Shields . | . . . . . . . . . . . . . . Regen/Repaired (Parts) 472 | . . . . 128 . . . . . 115 . . 229 Core Remaining (%) 78 | 100 . 73 . . . 52 81 . . . . 86 . Volleys Fired 347 | 4 15 7 40 27 45 7 90 7 4 . 15 9 77 Largest 3 | 2 2 2 2 2 2 2 2 2 2 . 2 2 3 Hottest 172 | 60 60 60 40 91 101 101 135 76 76 . 97 97 172 Shots Fired 600 | 8 30 12 46 54 77 10 164 14 8 . 22 17 138 Gun 464 | 8 30 8 46 42 22 2 129 7 4 . 22 17 127 Cannon 114 | . . . . 12 45 7 28 7 4 . . . 11 Launcher 22 | . . 4 . . 10 1 7 . . . . . . Special . | . . . . . . . . . . . . . . Kinetic 224 | 4 15 7 46 42 22 2 28 14 8 . 10 9 17 Thermal 214 | . . . . 12 45 7 21 . . . 7 8 114 Explosive 22 | . . 4 . . 10 1 7 . . . . . . Electromagnetic 140 | 4 15 1 . . . . 108 . . . 5 . 7 Robot Hit Streak 40 | 6 7 7 15 17 31 36 37 40 5 . 12 29 38 Robot Miss Streak 3 | . 3 2 2 1 3 1 3 1 1 . 1 . 2 Penetration Max 1 | . . . . . . . . . . . . . 1 Secondary Targets 9 | . 1 . 1 1 . . 1 . . . . 1 4 Max Gunslinging Chain 1 | . 1 . 1 1 . . 1 . . . . 1 1 Shots Hit Robots 436 | 6 18 7 34 44 33 15 121 10 7 . 15 17 109 Core Hits 238 | 4 9 27 17 15 25 9 61 7 1 . 6 6 51 Critical Kills . | . . . . . . . . . . . . . . Critical Parts Destroyed . | . . . . . . . . . . . . . . Critical Strikes 9 | . . . . . . . 3 . 1 . 1 . 4 Burn 5 | . . . . . . . . . . . 1 . 4 Blast 1 | . . . . . . . . . 1 . . . . Corrupt 3 | . . . . . . . 3 . . . . . . Melee Attacks 7 | . . . . . . 7 . . . . . . . Impact . | . . . . . . . . . . . . . . Slashing . | . . . . . . . . . . . . . . Piercing . | . . . . . . . . . . . . . . Sneak Attacks 1 | . . . . . . 1 . . . . . . . Combat Hostiles 1 | . . . . . . 1 . . . . . . . Follow-up Attacks . | . . . . . . . . . . . . . . Damage Inflicted 10246 | 78 242 659 433 709 988 370 2786 202 179 . 429 308 2863 Guns 6241 | 78 217 40 433 542 132 18 1802 121 58 . 254 308 2238 Cannons 1700 | . . . . 162 493 134 400 81 121 . . . 309 Explosions 1816 | . . 619 . . 363 218 561 . . . . . 55 Melee . | . . . . . . . . . . . . . . Ramming 489 | . 25 . . 5 . . 23 . . . 175 . 261 Kinetic 2560 | 25 116 40 433 542 132 18 313 202 179 . 100 156 304 Thermal 3615 | . . . . 162 493 134 443 . . . 96 152 2135 Explosive 1585 | . . 619 . . 363 218 385 . . . . . . Electromagnetic 1997 | 53 101 . . . . . 1622 . . . 58 . 163 Impact . | . . . . . . . . . . . . . . Slashing . | . . . . . . . . . . . . . . Piercing . | . . . . . . . . . . . . . . Highest Corruption 10 | . 1 1 . . . 1 10 . . . . . 6 Average Corruption 5 | . 1 1 . . . 1 9 . . . . . 5 Corruption Purged . | . . . . . . . . . . . . . . Corruption Blocked . | . . . . . . . . . . . . . . Effects 30 | . . . . . . 1 14 . . . . . 15 Message Errors 4 | . . . . . . . 2 . . . . . 2 Matter Fused 6 | . . . . . . . 1 . . . . . 5 Heat Flow Errors 2 | . . . . . . . 1 . . . . . 1 Energy Discharges 3 | . . . . . . . 2 . . . . . 1 Parts Rejected 2 | . . . . . . . 1 . . . . . 1 Data Loss (minor) 5 | . . . . . . . 2 . . . . . 3 Data Loss (major) 2 | . . . . . . . 2 . . . . . . Misfires 3 | . . . . . . . 2 . . . . . 1 Alerts 1 | . . . . . . 1 . . . . . . . Weapon Failures 2 | . . . . . . . 1 . . . . . 1 Overload Shots . | . . . . . . . . . . . . . . Overflow Damage 79 | . . 23 . . . 26 24 . . . . . 6 Projectiles 11 | . . . . . . . 11 . . . . . . Explosions 62 | . . 23 . . . 26 13 . . . . . . Melee 6 | . . . . . . . . . . . . . 6 Knockbacks 7 | . 1 . . . . . 2 2 . . 1 . 1 Impact 3 | . 1 . . . . . . . . . 1 . 1 Kinetic 4 | . . . . . . . 2 2 . . . . . Secondary . | . . . . . . . . . . . . . . Self-Inflicted Damage 267 | . 12 . . . 100 . 111 . . . . . 44 Shots 6 | . . . . . 2 . 3 . . . . . 1 Rammed 33 | . 3 . . . . . . . . . 16 . 14 Targets Rammed 47 | . 3 . . 1 . . 4 . . . 19 . 20 Kicked 5 | . . . . 1 . . 4 . . . . . . Crushed 9 | . . . . . . . . . . . 3 . 6 Highest Temperature 827 | . 54 56 . 99 366 188 433 27 24 . 146 379 827 Average Temperature 130 | . 19 37 . 42 84 98 149 9 12 . 53 205 212 Received Heat Transfer 2204 | . 6 80 18 51 174 36 390 . . . 189 135 1125 Effects 29 | . . . . . 1 . 8 . . . . 2 18 Shutdowns 10 | . . . . . . . 3 . . . . . 7 Energy Bleed 5 | . . . . . . . 3 . . . . . 2 Interference 6 | . . . . . 1 . 2 . . . . 1 2 Matter Decay 2 | . . . . . . . . . . . . . 2 Short Circuit 2 | . . . . . . . . . . . . 1 1 Damage (minor) 2 | . . . . . . . . . . . . . 2 Damage (core) 2 | . . . . . . . . . . . . . 2 Siege Activations . | . . . . . . . . . . . . . . Robots Corrupted 4 | . . . . . . . 4 . . . . . . Combat Hostiles 4 | . . . . . . . 4 . . . . . . Parts Fried 19 | . . . . . . . 19 . . . . . . Impact Corruptions 2 | . . . . . . . . . . . . . 2 Robots Melted 3 | . . . . . . . . . . . . . 3 Combat Hostiles 3 | . . . . . . . . . . . . . 3 Parts Melted 15 | . . . . . . . . . . . 1 1 13 Heat Transferred 7157 | . . . . 296 888 222 631 . . . 259 296 4565 Parts Sabotaged . | . . . . . . . . . . . . . . Parts Stolen . | . . . . . . . . . . . . . . Parts Stripped . | . . . . . . . . . . . . . . Power Chain Reactions 2 | . . . . . . . 1 . . . . . 1 Missiles Intercepted . | . . . . . . . . . . . . . . Alert | -11 -10 -10 -9 -9 -9 -9 -7 -6 -6 -6 -6 -6 -5 ------- Run | Jun Mat Min Mat Sto Gar Rec Fac Fac Was Fac Low Low Fac Peak Influence 1053 | 15 97 140 208 283 1053 515 868 382 53 20 . . 465 Initial 405 | . 8 . 46 74 58 405 183 366 53 20 . . 33 Average 314 | 3 54 36 72 150 503 451 473 369 43 20 . . 276 Maximum Alert Level 3 | . . . 1 1 3 2 3 1 . . . . 2 Low Security (%) 37 | 100 100 100 97 71 17 . 3 1 100 100 . . 27 Level 1 28 | . . . 2 28 16 . 38 98 . . . . 49 Level 2 28 | . . . . . 44 100 52 . . . . . 22 Level 3 5 | . . . . . 20 . 4 . . . . . . Level 4 . | . . . . . . . . . . . . . . Level 5 . | . . . . . . . . . . . . . . High Security . | . . . . . . . . . . . . . . Max Security . | . . . . . . . . . . . . . . Squads Dispatched 18 | . . . . . . . 15 . . . . . 3 Investigation 6 | . . . . . . . 5 . . . . . 1 Extermination 2 | . . . . . . . 2 . . . . . . Reinforcement 5 | . . . . . . . 4 . . . . . 1 Assault 2 | . . . . . . . 1 . . . . . 1 Garrison 3 | . . . . . . . 3 . . . . . . Intercept . | . . . . . . . . . . . . . . Searches Triggered . | . . . . . . . . . . . . . . Construction Impeded 2 | . . . . . . . 2 . . . . . . Haulers Reinforced . | . . . . . . . . . . . . . . Active Scanning Responses . | . . . . . . . . . . . . . . Cargo Convoy Interrupts . | . . . . . . . . . . . . . . Stealth | -11 -10 -10 -9 -9 -9 -9 -7 -6 -6 -6 -6 -6 -5 --------- Run | Jun Mat Min Mat Sto Gar Rec Fac Fac Was Fac Low Low Fac Distress Signals . | . . . . . . . . . . . . . . Communications Jammed . | . . . . . . . . . . . . . . Distress Signals . | . . . . . . . . . . . . . . Times Spotted 154 | . 10 22 6 8 21 4 33 . 6 . 5 3 36 Peak Tracking Total 14 | . 4 14 3 3 6 3 4 . 6 . 4 3 11 Tactical Retreats 8 | . 1 2 . . 1 . 1 . . . . . 3 Traps | -11 -10 -10 -9 -9 -9 -9 -7 -6 -6 -6 -6 -6 -5 ------- Run | Jun Mat Min Mat Sto Gar Rec Fac Fac Was Fac Low Low Fac Traps Triggered 11 | . 2 . . . 5 . 1 1 . . . . 2 Indirectly . | . . . . . . . . . . . . . . Trap Hack Attempts . | . . . . . . . . . . . . . . Triggered . | . . . . . . . . . . . . . . Disarmed 6 | . 6 . . . . . . . . . . . . Reprogrammed . | . . . . . . . . . . . . . . Reused . | . . . . . . . . . . . . . . Traps Extracted . | . . . . . . . . . . . . . . Installed . | . . . . . . . . . . . . . . Triggered . | . . . . . . . . . . . . . . Machines | -11 -10 -10 -9 -9 -9 -9 -7 -6 -6 -6 -6 -6 -5 ---------- Run | Jun Mat Min Mat Sto Gar Rec Fac Fac Was Fac Low Low Fac Machines Disabled 22 | . . 1 . 1 10 . 8 . . . . . 2 Max in Single Turn 2 | . . 1 . 1 2 . 2 . . . . . 1 Garrison Access 2 | . . . . . . . 1 . . . . . 1 Garrison Relay 5 | . . . . . 5 . . . . . . . . Phase Generator 1 | . . . . . 1 . . . . . . . . Machines Repaired . | . . . . . . . . . . . . . . Machines Sabotaged . | . . . . . . . . . . . . . . Overloaded Fab Kills . | . . . . . . . . . . . . . . Hacking | -11 -10 -10 -9 -9 -9 -9 -7 -6 -6 -6 -6 -6 -5 --------- Run | Jun Mat Min Mat Sto Gar Rec Fac Fac Was Fac Low Low Fac Machines Accessed 28 | . 4 . 2 5 3 2 8 . . . . . 4 Terminals 18 | . 4 . 1 2 3 2 5 . . . . . 1 Fabricators 3 | . . . . . . . 2 . . . . . 1 Repair Stations 3 | . . . . 2 . . . . . . . . 1 Recycling Units . | . . . . . . . . . . . . . . Scanalyzers 2 | . . . 1 . . . 1 . . . . . . Garrison Access 2 | . . . . 1 . . . . . . . . 1 Total Hacks 77 | . 12 . 5 20 6 4 21 . . . . . 9 Successful 43 | . 7 . 5 12 2 2 12 . . . . . 3 Failed 34 | . 5 . . 8 4 2 9 . . . . . 6 Catastrophic 5 | . . . . 2 1 . 1 . . . . . 1 Database Lockouts . | . . . . . . . . . . . . . . Manual 4 | . . . . 4 . . . . . . . . . Terminals 47 | . 12 . 1 8 6 4 13 . . . . . 3 Fabricators 7 | . . . . . . . 4 . . . . . 3 Repair Stations 11 | . . . . 9 . . . . . . . . 2 Recycling Units . | . . . . . . . . . . . . . . Scanalyzers 8 | . . . 4 . . . 4 . . . . . . Garrison Access 4 | . . . . 3 . . . . . . . . 1 Terminal Hacks 19 | . 7 . 1 3 2 2 4 . . . . . . Record 3 | . . . . 1 . . 2 . . . . . . Part Schematic 3 | . . . . 2 . 1 . . . . . . . Prototype ID Bank 1 | . . . . . . 1 . . . . . . . Open Door 1 | . . . . . 1 . . . . . . . . Emergency Access Points 1 | . . . . . 1 . . . . . . . . Alert Level 2 | . 1 . . . . . 1 . . . . . . Unreport Threat 1 | . 1 . . . . . . . . . . . . Locate Traps 1 | . 1 . . . . . . . . . . . . Disarm Traps 1 | . 1 . . . . . . . . . . . . Transport Status 1 | . 1 . . . . . . . . . . . . Hauler Manifests 1 | . 1 . . . . . . . . . . . . Zone Layout 3 | . 1 . 1 . . . 1 . . . . . . Fabricator Hacks 6 | . . . . . . . 4 . . . . . 2 Load Schematic 3 | . . . . . . . 2 . . . . . 1 Build 3 | . . . . . . . 2 . . . . . 1 Repair Station Hacks 8 | . . . . 8 . . . . . . . . . Scan Component 4 | . . . . 4 . . . . . . . . . Repair 4 | . . . . 4 . . . . . . . . . Recycling Unit Hacks . | . . . . . . . . . . . . . . Scanalyzer 8 | . . . 4 . . . 4 . . . . . . Insert Component 4 | . . . 2 . . . 2 . . . . . . Analyze 4 | . . . 2 . . . 2 . . . . . . Garrison Access Hacks 2 | . . . . 1 . . . . . . . . 1 Unlock Access 2 | . . . . 1 . . . . . . . . 1 Unauthorized Hacks . | . . . . . . . . . . . . . . Terminals . | . . . . . . . . . . . . . . Fabricators . | . . . . . . . . . . . . . . Repair Stations . | . . . . . . . . . . . . . . Recycling Units . | . . . . . . . . . . . . . . Scanalyzers . | . . . . . . . . . . . . . . Garrison Access . | . . . . . . . . . . . . . . Data Cores Recovered . | . . . . . . . . . . . . . . Used . | . . . . . . . . . . . . . . Hacking Detections 25 | . 4 . 2 4 3 2 7 . . . . . 3 Full Trace Events 7 | . . . 1 . . . 5 . . . . . 1 Feedback Events . | . . . . . . . . . . . . . . Feedback Blocked . | . . . . . . . . . . . . . . Robot Schematics Acquired . | . . . . . . . . . . . . . . Robots Built . | . . . . . . . . . . . . . . Authchips . | . . . . . . . . . . . . . . Time . | . . . . . . . . . . . . . . Total Robot Build Rating . | . . . . . . . . . . . . . . Part Schematics Acquired 7 | . . . 2 2 . 1 2 . . . . . . Parts Built 1 | . . . . . . . 1 . . . . . . Authchips . | . . . . . . . . . . . . . . Time 186 | . . . . . . . 124 . . . . . 62 Total Part Build Rating 2 | . . . . . . . 2 . . . . . . Parts Repaired 4 | . . . . 4 . . . . . . . . . Time 122 | . . . . 122 . . . . . . . . . Parts Recycled . | . . . . . . . . . . . . . . Recycled Matter . | . . . . . . . . . . . . . . Retrieved Matter . | . . . . . . . . . . . . . . Retrieved Components . | . . . . . . . . . . . . . . Parts Scanalyzed 4 | . . . 2 . . . 2 . . . . . . Part Schematics Acquired 4 | . . . 2 . . . 2 . . . . . . Parts Damaged 2 | . . . 1 . . . 1 . . . . . . Bothacking | -11 -10 -10 -9 -9 -9 -9 -7 -6 -6 -6 -6 -6 -5 ------------ Run | Jun Mat Min Mat Sto Gar Rec Fac Fac Was Fac Low Low Fac Used RIF Installer 2 | . . . . . 2 . . . . . . . . Hotswap 1 | . . . . . 1 . . . . . . . . Robots Hacked . | . . . . . . . . . . . . . . Non-combat . | . . . . . . . . . . . . . . Combat . | . . . . . . . . . . . . . . Robot Hacks Applied . | . . . . . . . . . . . . . . Relay Couplers Released 21 | . . . . . 20 . . . . . . . 1 Machine Destruction 21 | . . . . . 20 . . . . . . . 1 Attached 1 | . . . . . . 1 . . . . . . . Fabnet Peak Effective % . | . . . . . . . . . . . . . . Robots Rewired 1 | . . . . . . 1 . . . . . . . Allies Hacked . | . . . . . . . . . . . . . . Hacks Repelled . | . . . . . . . . . . . . . . Allies | -11 -10 -10 -9 -9 -9 -9 -7 -6 -6 -6 -6 -6 -5 -------- Run | Jun Mat Min Mat Sto Gar Rec Fac Fac Was Fac Low Low Fac Total Allies 4 | . . . . . 2 1 . . 1 . . . . Largest Group 2 | . . . . . 2 1 1 . 1 . . . . Highest-Rated Group 56 | . . . . . 56 15 15 . 31 . . . . Highest-Rated Ally 31 | . . . . . 31 15 15 . 31 . . . . Total Orders . | . . . . . . . . . . . . . . Ally Attacks 22 | . . . . . 12 . 4 . 6 . . . . Total Damage 285 | . . . . . 127 . 76 . 82 . . . . Kills 4 | . . . . . 3 . 1 . . . . . . Allies Corrupted . | . . . . . . . . . . . . . . Allies Melted . | . . . . . . . . . . . . . . Intel | -11 -10 -10 -9 -9 -9 -9 -7 -6 -6 -6 -6 -6 -5 ------- Run | Jun Mat Min Mat Sto Gar Rec Fac Fac Was Fac Low Low Fac Robot Analysis Total . | . . . . . . . . . . . . . . Derelict Logs Recovered 2 | . . . . . . . . . . . 2 . . Drone Launches . | . . . . . . . . . . . . . . Drone Recoveries . | . . . . . . . . . . . . . . Exploration | -11 -10 -10 -9 -9 -9 -9 -7 -6 -6 -6 -6 -6 -5 ------------- Run | Jun Mat Min Mat Sto Gar Rec Fac Fac Was Fac Low Low Fac Turns Passed 6374 | 98 411 111 339 530 1125 278 1184 405 182 149 746 50 766 Spaces Moved 4054 | 46 329 99 183 184 597 199 693 105 146 169 727 25 552 Core 2 | 1 . . 1 . . . . . . . . . . Treads 1093 | 43 5 . . . . . . . . . 542 25 478 Legs 2156 | . . . 176 184 597 199 693 105 146 56 . . . Wheels 431 | 2 324 99 6 . . . . . . . . . . Hover . | . . . . . . . . . . . . . . Flight 372 | . . . . . . . . . . 113 185 . 74 Fastest Speed 50 | 50 90 90 86 120 120 120 97 112 97 61 61 103 69 Average Speed 112 | 155 104 90 119 151 161 120 105 188 115 72 91 103 83 Slowest Speed 190 | 160 160 90 190 190 190 120 185 190 190 97 103 103 137 Overloaded Moves . | . . . . . . . . . . . . . . Propulsion Burnouts . | . . . . . . . . . . . . . . Robots Hopped . | . . . . . . . . . . . . . . Cave-ins Triggered . | . . . . . . . . . . . . . . Exploration Rate (%) 35 | 3 58 45 15 34 96 40 23 3 81 4 81 4 12 Regions Visited 13 Branch Regions 5 Pre-discovered Areas 1 | . . . . . . . . . . . 1 . . Known Exits Taken 3 | . . . . 1 . . . . . 1 1 . . Unknown Exits Taken 7 | 1 1 1 1 . . 1 1 . . . . 1 . Scrap Searched 1 | . . . . . . . . . . . 1 . . Spaces Dug 20 | . . . . . 16 . 4 . . . . . . Terrain Destroyed 312 | . . 18 . . 196 12 82 1 . . . . 3 Melee . | . . . . . . . . . . . . . . Projectile 2 | . . . . . 1 . . 1 . . . . . AOE 310 | . . 18 . . 195 12 82 . . . . . 3 Terrain Rammed . | . . . . . . . . . . . . . . Walls Destroyed . | . . . . . . . . . . . . . . Machines Disabled . | . . . . . . . . . . . . . . Actions | -11 -10 -10 -9 -9 -9 -9 -7 -6 -6 -6 -6 -6 -5 --------- Run | Jun Mat Min Mat Sto Gar Rec Fac Fac Was Fac Low Low Fac Total 5257 | 62 367 107 260 381 685 223 984 300 151 193 781 33 730 Wait 600 | . 2 . 7 144 11 . 159 183 . 16 15 . 63 Move 4043 | 45 328 98 182 184 596 198 692 105 145 168 726 24 552 Hop . | . . . . . . . . . . . . . . Pick Up 56 | 7 9 . 9 7 7 2 8 1 . 2 1 . 3 Fast Attach 43 | 6 2 . 4 7 1 1 5 1 . 3 3 . 10 Attach 21 | . 1 . 4 1 . 1 7 . 2 3 1 . 1 Detach 5 | . 1 . 1 . . . . . . 1 . . 2 Swap 22 | . 2 2 2 1 3 4 7 . . . 1 . . Drop 51 | . 4 . 11 9 7 3 12 3 . . . . 2 Fire 347 | 4 15 7 40 27 45 7 90 7 4 . 15 9 77 Melee 7 | . . . . . . 7 . . . . . . . Ram 3 | . 3 . . . . . . . . . . . . Kick 5 | . . . . 1 . . 4 . . . . . . Crush 39 | . . . . . . . . . . . 19 . 20 Escape Stasis 15 | . . . . . 15 . . . . . . . . Rewire . | . . . . . . . . . . . . . . Trap . | . . . . . . . . . . . . . . Miscellaneous . | . . . . . . . . . . . . . . Route ------- -11/Junkyard -10/Materials (discovered 2 exits: *Mat / [*Min]) -10/Mines -9/Materials -9/Storage -9/Garrison (discovered 3 exits: *Rec x3) -9/Recycling -7/Factory -6/Factory -6/Waste -6/Factory -6/Lower Caves -6/Lower Caves -5/Factory (discovered 2 exits: Fac x2) History --------- Turn | Location | Event 38 | -11/Junkyard | Discovered new exit (range 16) 99 | -11/Junkyard | Entered Materials 241 | -10/Materials | Discovered new exit (range 9) 318 | -10/Materials | Build established: Mutant 460 | -10/Materials | Discovered new exit (range 16) 510 | -10/Materials | Entered Mines 515 | -10/Mines | Met a Derelict bent on vengeance 543 | -10/Mines | Assembled infested the area 578 | -10/Mines | Destroyed 9 combat bots 609 | -10/Mines | Discovered new exit (range 10) 621 | -10/Mines | Entered Materials 621 | -9/Materials | Evolved 2 slots: Propulsion x1, Utility x1 925 | -9/Materials | Discovered new exit (range 10) 960 | -9/Materials | Entered Storage 998 | -9/Storage | Repaired Sensor Array 1343 | -9/Storage | Repaired Imp. Ion Engine 1385 | -9/Storage | Repaired Imp. Aluminum Leg 1418 | -9/Storage | Repaired Imp. Aluminum Leg 1490 | -9/Storage | Identified exit to Garrison 1490 | -9/Storage | Entered Garrison 1540 | -9/Garrison | Triggered checkpoint 1570 | -9/Garrison | Garrison Relay disabled 1784 | -9/Garrison | Triggered checkpoint 1787 | -9/Garrison | Triggered checkpoint 1876 | -9/Garrison | Phase Generator disabled 1902 | -9/Garrison | Discovered new exit (range 4) 1947 | -9/Garrison | Garrison Relay disabled 1978 | -9/Garrison | Triggered checkpoint 2024 | -9/Garrison | Garrison Relay disabled 2067 | -9/Garrison | Rescued a captive Derelict 2068 | -9/Garrison | Rescued a captive Derelict 2183 | -9/Garrison | Triggered checkpoint 2262 | -9/Garrison | Garrison Relay disabled 2277 | -9/Garrison | Triggered checkpoint 2317 | -9/Garrison | Discovered new exit (range 15) 2382 | -9/Garrison | Triggered checkpoint 2414 | -9/Garrison | Installed Relay Interface Framework 2464 | -9/Garrison | Garrison Relay disabled 2530 | -9/Garrison | Expanded RIF knowledge: Hotswap 2556 | -9/Garrison | Triggered checkpoint 2591 | -9/Garrison | Discovered new exit (range 11) 2615 | -9/Garrison | Entered Recycling 2630 | -9/Recycling | Found Scrap Engine 2819 | -9/Recycling | Discovered new exit (range 12) 2893 | -9/Recycling | Entered Factory 2893 | -7/Factory | Accompanied by 1 ally 2893 | -7/Factory | Evolved 4 slots: Power x1, Propulsion x1, Utility x2 3007 | -7/Factory | Garrison activated, responded to threat 3078 | -7/Factory | Build established: Bothacker-Mutant 3555 | -7/Factory | Fabricated Rocket Launcher? 3764 | -7/Factory | System corruption reached 10% 4059 | -7/Factory | Discovered new exit (range 16) 4077 | -7/Factory | Entered another Factory area 4077 | -6/Factory | Evolved 2 slots: Utility x1, Weapon x1 4482 | -6/Factory | Sucked down chute 4482 | -6/Factory | Entered Waste 4483 | -6/Waste | Met a frightened Derelict 4503 | -6/Waste | Spotted C-40 Crusher 4523 | -6/Waste | Spotted C-40 Crusher 4558 | -6/Waste | Crushed by Compactor (1 part destroyed, 2 dropped) 4583 | -6/Waste | Spotted C-40 Crusher 4603 | -6/Waste | Crushed by Compactor (0 parts destroyed, 1 dropped) 4606 | -6/Waste | Spotted C-40 Crusher 4608 | -6/Waste | Spotted C-40 Crusher 4609 | -6/Waste | Crushed by Compactor (1 part destroyed, 1 dropped) 4613 | -6/Waste | Crushed by Compactor (0 parts destroyed, 2 dropped) 4621 | -6/Waste | Crushed by Compactor (1 part destroyed, 1 dropped) 4627 | -6/Waste | Crushed by Compactor (0 parts destroyed, 2 dropped) 4635 | -6/Waste | Spotted C-40 Crusher 4651 | -6/Waste | Discovered new exit (range 14) 4664 | -6/Waste | Entered Factory 4802 | -6/Factory | Discovered new exit (range 4) 4804 | -6/Factory | Identified exit to Lower Caves 4813 | -6/Factory | Entered Lower Caves 4890 | -6/Lower Caves | Encountered a Warlord checkpoint 4897 | -6/Lower Caves | Build established: Mutant 5241 | -6/Lower Caves | Build established: Construct 5413 | -6/Lower Caves | Discovered new exit (range 6) 5470 | -6/Lower Caves | Learned 12 Factory zone layouts 5553 | -6/Lower Caves | Identified exit to Lower Caves 5559 | -6/Lower Caves | Entered another Lower Caves area 5564 | -6/Lower Caves | Discovered new exit (range 11) 5609 | -6/Lower Caves | Entered Factory 5609 | -5/Factory | Evolved 2 slots: Propulsion x1, Utility x1 5610 | -5/Factory | Identified exit to Factory 5626 | -5/Factory | Found Launcher Loader 5705 | -5/Factory | Identified exit to Garrison 5854 | -5/Factory | Destroyed 9 combat bots 5868 | -5/Factory | Lost 3 parts (1p2w) 5938 | -5/Factory | Lost 4 parts (2p1u1w) 6317 | -5/Factory | Core integrity fell below 50% 6365 | -5/Factory | Core integrity fell below 20% 6375 | -5/Factory | Destroyed by G-50 Soldier with Heavy Laser Last Messages --------------- 06353_ Thermal Construct/G destroyed. 06354_ K-01 Serf collects debris. 06354_ Flying NPA-FPA Exoskeleton destroyed. 06354_ Flying NPA-FPA Exoskeleton core remains intact and functional. 06355_ Fission-Ion Core destroyed. 06357_ K-01 Serf collects debris. 06357_ Broken Adv. Signal Interpreter destroyed. 06358_ Critical hit (Burn: +37). 06359_ Flying NPA-FPA Exoskeleton destroyed. 06359_ Flying NPA-FPA Exoskeleton core remains intact and functional. 06361_ K-01 Serf collects debris. 06362_ Energy Wave Construct/G destroyed. 06364_ K-01 Serf collects debris. 06367_ Critical hit (Burn: +37). 06367_ K-01 Serf collects debris. 06368_ Flying NPA-FPA Exoskeleton destroyed. 06368_ Flying NPA-FPA Exoskeleton core remains intact and functional. 06371_ Flying NPA-FPA Exoskeleton destroyed. 06371_ K-01 Serf collects debris. 06373_ Critical hit (Burn: +37). Map ----- +----------------------------------------------------+ | #####?????# #????#+########??????# # "" ## | | # ???# #????????????????????# # "" ## | | # ??# ##???????????????????# # """ + | | # # T#????????############ # """ ## | | # """"""" # #???????? # # """ ## | | # """"""" # ##???? ??? # # ## | | # """"""" # ###### #?? # ###+##### | | # """"""" # #?? # | | # # ###### #?? # | | #+###+##### #????? ??? + """ """ | | # #??# ###### ??? # """ """ | | # #??# # ! # ??? # """ """ | | # #??# # # #?? # #### | | # #??# + # #?????????????# "???????? | | # #??# # # #?????????????# "???????? | | # #### # !!!# #?????????????# "" """???### | | # + !! # #??############ "" ?? | | # # !! # #??#""""#""""## "T ?? # | | # # ####"F "#" ## "" ? # | | # # ! "" !! # | | ############### %% !% |%= !! # | | #????# # """ """ !!!k % ! !! # | | #????# """# """ """ %=! ######### # | | ###### """# """ """!*=%[ o #???????# # | | + """# ggg%*[! [=#???????# # | | # ; @l[%!k[ =%#???????#+# | | # """############+!+##### !#???????# | | + """#????????? ?? #???????# " | | #### #### """#??????? / #???????# " | | ???# #??# ! #?????# ## #???????# | | ???# #??##########?????# = #? #???????# | | ???# #?????????????????# ! ! #? #???????# " | | ???# #?????????????????# #??#???????# | | ???# #?????????????????# #??????????# | | ???? #?????????????????# #??????????# | | ???? #?????????????????# #??????????# | | ???? ?????????????????#! #??????????# | | ???? ?????????????????# #??????????+ | | ???? ?????????????????# ## #####??? | | ????##????????????????################ #??????? | | ?????????????????????? + #??????? | | ?????????????????????? ###### #??????? | | ?????????????????????? #????# #####??? | | ?????????????????????? #????# ??? | | ?????????????????????? #????##########??? | | ?????????????????????? #????????######??? | | ?????????????????????? #????????# ??? | | ?????????????????????? #????????# ??? | | ?????????????????????? #????????# ??? | | ?????????????????????? #????????# ??? | +----------------------------------------------------+ Best States ------------- Heat Dissipation 40 Energy Generation 33 Energy Capacity 690 Matter Stores 550 Matter Capacity 550 Sight Range 16 Robot Scan Range 14 Terrain Scan Density 10 ECM Strength 1 Additional Mass Support 6 Armor Coverage 450 Resistance: KI 20 Resistance: TH 40 Resistance: EX 20 Resistance: EM 20 Resistance: I 20 Resistance: S 20 Resistance: P 20 Evasion (%) 57 Targeting Accuracy 8 Recoil Reduction 4 Offensive Hacking 10 Relay Coupler Types 1 Relay Coupler Value 24 Item Schematics ----------------- Imp. Aluminum Leg | -9/Materials | Scanalyzed Grenade Launcher | -9/Materials | Scanalyzed Imp. Deuterium Engine | -9/Storage | Hacked Arm. Wheel | -9/Storage | Hacked Imp. Hover Unit | -9/Recycling | Hacked Rocket Launcher | -7/Factory | Scanalyzed Imp. Ion Engine | -7/Factory | Scanalyzed Robot Schematics ------------------ None Fabricated ------------ Rocket Launcher | x1 | -7/Factory Alien Tech Used ----------------- None Achievements -------------- A New Friend Everything Is Under Control Maybe Next Time I'll Detach My Launcher Slippery One Challenges ------------ None Game ------ Seed CloakingAngularTearclaws Manual? 0 Play Time 01:35:31 Cumulative 20.8 hours Start 2023.04.15 @ 13:50:20 End 2023.04.15 @ 21:09:25 Sessions 3 Manual Loads 0 Difficulty Adventurer Special Mode None Game No. 32 Rogue 23 Adventurer 9 Explorer 0 Win Type - Total 0 Types 0/0/0/0/0/0/0/0/0 Lore% 8 Gallery% 26 Achievement% 20 Wizard Run 0 Options --------- ASCII 0 Keyboard 0 Movement Mouse Keybinds 0 Fullscreen 1 Font 18/SmallcapsGlow Map View 76x50 Tactical HUD 1 Map Filters NONE Filters NONE Steam 1 RUN: 838bd7c5-25b7-4253-87d1-c0c412ee7d51